[Event "*** Titled Tuesday 3|2 Blitz"]
[Site "Chess.com"]
[Date "2015.02.24"]
[Round "4"]
[White "xtremeungar"]
[Black "ChessTrener"]
[Result "1-0"]
[WhiteElo "2268"]
[BlackElo "2472"]
[TimeControl "180+2"]
[EndTime "11:45:20 PST"]
[Termination "xtremeungar won by resignation"]

1. e4 {[%clk 0:03:00]} 1... c5 {[%clk 0:02:59]} 2. Nf3 {[%clk 0:03:00.8]} 2...
Nc6 {[%clk 0:02:59.9]} 3. Bb5 {[%clk 0:03:00.9]} 3... g6 {[%clk 0:03:00.3]} 4.
O-O {[%clk 0:03:01.4]} 4... Bg7 {[%clk 0:03:01.3]} 5. Bxc6 {[%clk 0:03:02.6]}
5... dxc6 {[%clk 0:03:01.3]} 6. h3 {[%clk 0:03:02.8]} 6... Nf6 {[%clk 0:03:02]}
7. Nc3 {[%clk 0:03:02]} 7... Nd7 {[%clk 0:03:02.4]} 8. d3 {[%clk 0:03:02.7]}
8... e5 {[%clk 0:03:03.3]} 9. Be3 {[%clk 0:03:02]} 9... Qe7 {[%clk 0:03:02.7]}
10. Qd2 {[%clk 0:03:02.5]} 10... h6 {[%clk 0:03:03.7]} 11. Nh2 {[%clk
0:03:02.5]} 11... b6 {[%clk 0:03:03]} 12. f4 {[%clk 0:03:03.4]} 12... exf4
{[%clk 0:03:04.1]} 13. Bxf4 {[%clk 0:03:04.5]} 13... Nf8 {[%clk 0:03:04.1]} 14.
Nf3 {[%clk 0:03:02.4]} 14... Ne6 {[%clk 0:03:04.8]} 15. Be3 {[%clk 0:03:03.6]}
15... Nd4 {[%clk 0:03:05.8]} 16. Rab1 {[%clk 0:02:59.3]} 16... Be6 {[%clk
0:02:59]} 17. b3 {[%clk 0:02:53.7]} 17... O-O-O {[%clk 0:02:59]} 18. Ne2 {[%clk
0:02:52.3]} 18... f5 {[%clk 0:02:56]} 19. exf5 {[%clk 0:02:46.8]} 19... Bxf5
{[%clk 0:02:46.1]} 20. Nexd4 {[%clk 0:02:40.7]} 20... cxd4 {[%clk 0:02:45.8]}
21. Bf4 {[%clk 0:02:39.6]} 21... Qc5 {[%clk 0:02:34]} 22. Rfe1 {[%clk 0:02:23]}
22... Qc3 {[%clk 0:02:29]} 23. Re7 {[%clk 0:02:10.9]} 23... Rd7 {[%clk
0:02:23.4]} 24. Qe2 {[%clk 0:01:53.1]} 24... g5 {[%clk 0:02:12.6]} 25. Bg3
{[%clk 0:01:48.4]} 25... Qc5 {[%clk 0:01:54.4]} 26. Re1 {[%clk 0:01:47.9]} 26...
Rhd8 {[%clk 0:01:50.8]} 27. b4 {[%clk 0:01:39.2]} 27... Rxe7 {[%clk 0:01:49.8]}
28. Qxe7 {[%clk 0:01:36.4]} 28... Qxe7 {[%clk 0:01:50.7]} 29. Rxe7 {[%clk
0:01:38.3]} 29... Rd7 {[%clk 0:01:51.5]} 30. Re8+ {[%clk 0:01:36.1]} 30... Rd8
{[%clk 0:01:42.7]} 31. Re7 {[%clk 0:01:36.9]} 31... Rd7 {[%clk 0:01:43.8]} 32.
Re8+ {[%clk 0:01:37.7]} 32... Kb7 {[%clk 0:01:44.9]} 33. a4 {[%clk 0:01:36.2]}
33... Ka6 {[%clk 0:01:35.4]} 34. Be5 {[%clk 0:01:32.2]} 34... Bxe5 {[%clk
0:01:06.7]} 35. Nxe5 {[%clk 0:01:32.7]} 35... Rc7 {[%clk 0:00:55.6]} 36. Nxc6
{[%clk 0:01:29.1]} 36... b5 {[%clk 0:00:53.9]} 37. Rb8 {[%clk 0:01:23.5]} 1-0

[Event "*** Titled Tuesday 3|2 Blitz"]
[Site "Chess.com"]
[Date "2015.02.24"]
[Round "4"]
[White "raskolnnikov"]
[Black "mokerslag"]
[Result "1-0"]
[WhiteElo "2285"]
[BlackElo "2358"]
[TimeControl "180+2"]
[EndTime "11:45:28 PST"]
[Termination "raskolnnikov won by resignation"]

1. d4 {[%clk 0:03:00]} 1... Nf6 {[%clk 0:02:58.2]} 2. c4 {[%clk 0:03:01.4]} 2...
e5 {[%clk 0:02:59.4]} 3. dxe5 {[%clk 0:03:02.2]} 3... Ng4 {[%clk 0:03:01]} 4.
Bf4 {[%clk 0:03:03]} 4... g5 {[%clk 0:03:01.8]} 5. Bg3 {[%clk 0:03:03.7]} 5...
Nc6 {[%clk 0:03:03.3]} 6. Nf3 {[%clk 0:03:04.1]} 6... Bg7 {[%clk 0:03:04.6]} 7.
h4 {[%clk 0:03:03.9]} 7... Ngxe5 {[%clk 0:03:05.1]} 8. Nxe5 {[%clk 0:03:05.1]}
8... Nxe5 {[%clk 0:03:07]} 9. Qc2 {[%clk 0:02:47.2]} 9... g4 {[%clk 0:03:01.5]}
10. e3 {[%clk 0:02:39.6]} 10... h5 {[%clk 0:03:01.9]} 11. Nc3 {[%clk 0:02:40.4]}
11... d6 {[%clk 0:03:03.3]} 12. Rd1 {[%clk 0:02:28.7]} 12... Bd7 {[%clk
0:03:01]} 13. c5 {[%clk 0:02:24.1]} 13... dxc5 {[%clk 0:02:52.5]} 14. Qe4 {[%clk
0:02:23.2]} 14... Qe7 {[%clk 0:02:47.9]} 15. Nd5 {[%clk 0:02:14.4]} 15... Qd6
{[%clk 0:02:44.1]} 16. Nc3 {[%clk 0:01:25.8]} 16... Qe7 {[%clk 0:02:43.2]} 17.
Nd5 {[%clk 0:01:13.6]} 17... Qd6 {[%clk 0:02:43.9]} 18. Nc3 {[%clk 0:01:13.1]}
18... Qe7 {[%clk 0:02:44.3]} 19. Rd5 {[%clk 0:00:55.5]} 19... f6 {[%clk
0:02:19]} 20. Bxe5 {[%clk 0:00:54.9]} 20... fxe5 {[%clk 0:02:19.3]} 21. Qg6+
{[%clk 0:00:47.1]} 21... Kd8 {[%clk 0:02:20.1]} 22. Bc4 {[%clk 0:00:41.9]} 22...
Kc8 {[%clk 0:02:12.3]} 23. O-O {[%clk 0:00:38.9]} 23... Be6 {[%clk 0:02:13.2]}
24. Rxc5 {[%clk 0:00:30.5]} 24... Qxc5 {[%clk 0:01:37.6]} 25. Bxe6+ {[%clk
0:00:30.3]} 25... Kb8 {[%clk 0:01:39.5]} 26. Qxg7 {[%clk 0:00:29.8]} 26... Rd8
{[%clk 0:01:41.4]} 27. Ne4 {[%clk 0:00:26.6]} 27... Qb6 {[%clk 0:01:37.8]} 28.
Qe7 {[%clk 0:00:18.9]} 28... Rh8 {[%clk 0:01:38.1]} 29. Nf6 {[%clk 0:00:18.3]}
29... Qd6 {[%clk 0:01:29.1]} 30. Nd7+ {[%clk 0:00:18.9]} 30... Kc8 {[%clk
0:01:30.6]} 31. Nf8+ {[%clk 0:00:16.8]} 31... Kb8 {[%clk 0:01:19.4]} 32. Qe8+
{[%clk 0:00:17.8]} 1-0

[Event "*** Titled Tuesday 3|2 Blitz"]
[Site "Chess.com"]
[Date "2015.02.24"]
[Round "4"]
[White "jup1978"]
[Black "rhungaski"]
[Result "0-1"]
[WhiteElo "2150"]
[BlackElo "2434"]
[TimeControl "180+2"]
[EndTime "11:46:07 PST"]
[Termination "rhungaski won by resignation"]

1. e4 {[%clk 0:02:55.6]} 1... d6 {[%clk 0:02:58.6]} 2. d4 {[%clk 0:02:56.1]}
2... Nf6 {[%clk 0:03:00.5]} 3. Nc3 {[%clk 0:02:57.2]} 3... e5 {[%clk 0:03:01.8]}
4. Nf3 {[%clk 0:02:56.2]} 4... Nbd7 {[%clk 0:03:00.1]} 5. Bc4 {[%clk 0:02:56.8]}
5... Be7 {[%clk 0:03:01]} 6. O-O {[%clk 0:02:57.3]} 6... O-O {[%clk 0:03:01.9]}
7. a4 {[%clk 0:02:57.6]} 7... a5 {[%clk 0:03:01.2]} 8. Re1 {[%clk 0:02:57.9]}
8... c6 {[%clk 0:03:02.6]} 9. h3 {[%clk 0:02:58.5]} 9... exd4 {[%clk 0:03:04.2]}
10. Qxd4 {[%clk 0:02:57.1]} 10... Nc5 {[%clk 0:03:06.1]} 11. Bf4 {[%clk
0:02:52.6]} 11... Be6 {[%clk 0:03:04.3]} 12. Bxe6 {[%clk 0:02:48.6]} 12... fxe6
{[%clk 0:03:04.3]} 13. e5 {[%clk 0:02:32.9]} 13... Nd5 {[%clk 0:02:56.4]} 14.
Bg3 {[%clk 0:02:19.4]} 14... Nxc3 {[%clk 0:02:55.4]} 15. exd6 {[%clk 0:02:10.3]}
15... Nd5 {[%clk 0:02:17.8]} 16. dxe7 {[%clk 0:01:54.7]} 16... Qxe7 {[%clk
0:02:19.7]} 17. Bh4 {[%clk 0:01:55.1]} 17... Qd6 {[%clk 0:02:20.2]} 18. Bg3
{[%clk 0:01:56.1]} 18... Qe7 {[%clk 0:02:20.9]} 19. Bh4 {[%clk 0:01:55.2]} 19...
Nf6 {[%clk 0:02:20.3]} 20. Rad1 {[%clk 0:01:28.1]} 20... Rad8 {[%clk 0:02:13.6]}
21. Bxf6 {[%clk 0:01:28]} 21... gxf6 {[%clk 0:02:09.2]} 22. Qg4+ {[%clk
0:01:11.9]} 22... Qg7 {[%clk 0:02:08.3]} 23. Rxd8 {[%clk 0:01:05]} 23... Rxd8
{[%clk 0:02:08.4]} 24. Qc4 {[%clk 0:01:05.9]} 24... Rd5 {[%clk 0:02:02.8]} 25.
c3 {[%clk 0:01:02.1]} 25... e5 {[%clk 0:01:39.8]} 26. b4 {[%clk 0:00:40.2]}
26... axb4 {[%clk 0:01:38.6]} 27. cxb4 {[%clk 0:00:42.1]} 27... Nxa4 {[%clk
0:01:32.8]} 28. Ra1 {[%clk 0:00:43.5]} 28... Nb6 {[%clk 0:01:32.6]} 29. Qb3
{[%clk 0:00:33]} 29... Qd7 {[%clk 0:01:30.2]} 30. b5 {[%clk 0:00:25.7]} 30...
cxb5 {[%clk 0:01:27.6]} 31. Nh4 {[%clk 0:00:25.6]} 31... Kh8 {[%clk 0:01:22.5]}
32. Kh2 {[%clk 0:00:23]} 32... e4 {[%clk 0:01:15.8]} 33. g3 {[%clk 0:00:21]}
33... Rd2 {[%clk 0:01:08.4]} 34. Qe3 {[%clk 0:00:21.8]} 34... Qd4 {[%clk
0:01:04.6]} 35. Qh6 {[%clk 0:00:21.5]} 35... Qxf2+ {[%clk 0:01:03.8]} 0-1

[Event "*** Titled Tuesday 3|2 Blitz"]
[Site "Chess.com"]
[Date "2015.02.24"]
[Round "4"]
[White "gmjlh"]
[Black "LyonBeast"]
[Result "0-1"]
[WhiteElo "2493"]
[BlackElo "2766"]
[TimeControl "180+2"]
[EndTime "11:46:31 PST"]
[Termination "LyonBeast won by resignation"]

1. e4 {[%clk 0:03:00]} 1... c5 {[%clk 0:02:58.3]} 2. Nf3 {[%clk 0:03:01.2]} 2...
d6 {[%clk 0:02:59.3]} 3. Bb5+ {[%clk 0:03:02.4]} 3... Nd7 {[%clk 0:02:59.2]} 4.
d4 {[%clk 0:03:01]} 4... cxd4 {[%clk 0:02:55.1]} 5. Qxd4 {[%clk 0:03:02.9]} 5...
a6 {[%clk 0:02:55.9]} 6. Bxd7+ {[%clk 0:03:03.5]} 6... Bxd7 {[%clk 0:02:57.8]}
7. c4 {[%clk 0:03:03.5]} 7... e6 {[%clk 0:02:54]} 8. Nc3 {[%clk 0:03:03.4]} 8...
Nf6 {[%clk 0:02:55.2]} 9. O-O {[%clk 0:03:02.9]} 9... Be7 {[%clk 0:02:55.5]} 10.
Bg5 {[%clk 0:03:02]} 10... Bc6 {[%clk 0:02:53.4]} 11. b4 {[%clk 0:02:43.6]}
11... O-O {[%clk 0:02:49.6]} 12. a4 {[%clk 0:02:38.5]} 12... h6 {[%clk
0:02:39.2]} 13. Be3 {[%clk 0:02:05.2]} 13... Ng4 {[%clk 0:02:33.9]} 14. Bd2
{[%clk 0:02:01.2]} 14... f5 {[%clk 0:02:10]} 15. Rae1 {[%clk 0:01:46.3]} 15...
Bf6 {[%clk 0:02:06.2]} 16. Qd3 {[%clk 0:01:47.2]} 16... f4 {[%clk 0:01:05.6]}
17. b5 {[%clk 0:01:29.6]} 17... Be8 {[%clk 0:01:01.8]} 18. Ne2 {[%clk
0:01:07.9]} 18... Ne5 {[%clk 0:00:58.4]} 19. Nxe5 {[%clk 0:01:07.9]} 19... Bxe5
{[%clk 0:01:00.3]} 20. Bc3 {[%clk 0:00:56.9]} 20... f3 {[%clk 0:00:57.5]} 21.
gxf3 {[%clk 0:00:56]} 21... Qg5+ {[%clk 0:00:36.2]} 22. Kh1 {[%clk 0:00:57.3]}
22... Bh5 {[%clk 0:00:32]} 23. Ng1 {[%clk 0:00:58.4]} 23... Bf4 {[%clk
0:00:30.7]} 24. Qd4 {[%clk 0:00:44.4]} 24... axb5 {[%clk 0:00:26.7]} 25. cxb5
{[%clk 0:00:45.4]} 25... Rac8 {[%clk 0:00:24.6]} 26. Ba1 {[%clk 0:00:46.4]}
26... e5 {[%clk 0:00:24.2]} 27. Qd5+ {[%clk 0:00:36.5]} 27... Kh8 {[%clk
0:00:25.2]} 28. Qd3 {[%clk 0:00:30.6]} 28... Qh4 {[%clk 0:00:26.1]} 29. h3
{[%clk 0:00:32]} 29... Rf6 {[%clk 0:00:26.6]} 0-1

[Event "*** Titled Tuesday 3|2 Blitz"]
[Site "Chess.com"]
[Date "2015.02.24"]
[Round "4"]
[White "Schemato"]
[Black "DoctorMove"]
[Result "1/2-1/2"]
[WhiteElo "2040"]
[BlackElo "1757"]
[TimeControl "180+2"]
[EndTime "11:46:46 PST"]
[Termination "Game drawn by agreement"]

1. c4 {[%clk 0:03:00]} 1... e6 {[%clk 0:02:58.1]} 2. Nc3 {[%clk 0:03:00.3]} 2...
d5 {[%clk 0:02:56.8]} 3. d4 {[%clk 0:02:57.5]} 3... Nf6 {[%clk 0:02:56.9]} 4.
cxd5 {[%clk 0:02:55.7]} 4... Nxd5 {[%clk 0:02:57.3]} 5. e4 {[%clk 0:02:53.3]}
5... Nxc3 {[%clk 0:02:58.2]} 6. bxc3 {[%clk 0:02:54]} 6... c5 {[%clk 0:02:59.4]}
7. Nf3 {[%clk 0:02:51.1]} 7... cxd4 {[%clk 0:03:00.2]} 8. cxd4 {[%clk
0:02:51.8]} 8... Bb4+ {[%clk 0:03:01.2]} 9. Bd2 {[%clk 0:02:53]} 9... Bxd2+
{[%clk 0:03:02.6]} 10. Qxd2 {[%clk 0:02:54.5]} 10... O-O {[%clk 0:03:03.8]} 11.
Bc4 {[%clk 0:02:54.5]} 11... Nc6 {[%clk 0:03:05]} 12. O-O {[%clk 0:02:51.6]}
12... b6 {[%clk 0:03:06.5]} 13. Rad1 {[%clk 0:02:46.2]} 13... Bb7 {[%clk
0:03:07.6]} 14. Rfe1 {[%clk 0:02:43.2]} 14... Na5 {[%clk 0:03:08.4]} 15. Bf1
{[%clk 0:02:38.2]} 15... Rc8 {[%clk 0:03:09.1]} 16. d5 {[%clk 0:02:33.5]} 16...
exd5 {[%clk 0:03:07.4]} 17. exd5 {[%clk 0:02:31.7]} 17... Nc4 {[%clk 0:03:00.7]}
18. Bxc4 {[%clk 0:02:29.5]} 18... Rxc4 {[%clk 0:03:00.7]} 19. Ne5 {[%clk
0:02:26.6]} 19... Rc5 {[%clk 0:02:51.2]} 20. d6 {[%clk 0:02:19.3]} 20... Rd5
{[%clk 0:02:49]} 21. Qxd5 {[%clk 0:02:10.2]} 21... Bxd5 {[%clk 0:02:47.9]} 22.
Rxd5 {[%clk 0:02:12.1]} 22... Re8 {[%clk 0:02:39.9]} 23. Red1 {[%clk 0:02:07.1]}
23... f6 {[%clk 0:01:28.1]} 24. Nc6 {[%clk 0:02:07.2]} 24... Qd7 {[%clk
0:01:28.3]} 25. Ne7+ {[%clk 0:02:06.3]} 25... Kf7 {[%clk 0:01:19.3]} 26. h3
{[%clk 0:02:04.6]} 26... a6 {[%clk 0:01:02.7]} 27. Rc1 {[%clk 0:01:51.5]} 27...
Rxe7 {[%clk 0:01:01.4]} 28. Rc7 {[%clk 0:01:52.3]} 28... Qxc7 {[%clk 0:01:00.7]}
29. dxc7 {[%clk 0:01:52.4]} 29... Rxc7 {[%clk 0:01:01.8]} 30. Rd6 {[%clk
0:01:52.8]} 30... Rb7 {[%clk 0:01:03]} 31. Kf1 {[%clk 0:01:49.9]} 31... Ke7
{[%clk 0:01:03.4]} 32. Rc6 {[%clk 0:01:49.5]} 32... Kd7 {[%clk 0:00:59.2]} 33.
Rc3 {[%clk 0:01:50.2]} 33... b5 {[%clk 0:00:58.8]} 34. Ke2 {[%clk 0:01:49.4]}
34... b4 {[%clk 0:00:58.6]} 35. Rc5 {[%clk 0:01:47.9]} 35... Kd6 {[%clk
0:00:44.5]} 36. Ra5 {[%clk 0:01:46.3]} 36... Rb6 {[%clk 0:00:45.6]} 37. h4
{[%clk 0:01:42.3]} 37... Kc7 {[%clk 0:00:43.9]} 38. g3 {[%clk 0:01:39.4]} 38...
Kb7 {[%clk 0:00:44.4]} 39. Ke3 {[%clk 0:01:39.8]} 39... Re6+ {[%clk 0:00:37.7]}
40. Kd3 {[%clk 0:01:38.2]} 40... Kb6 {[%clk 0:00:39.2]} 41. Rd5 {[%clk
0:01:37.8]} 41... Re7 {[%clk 0:00:30.7]} 42. Rd6+ {[%clk 0:01:26.8]} 42... Kb5
{[%clk 0:00:31.4]} 43. Rd5+ {[%clk 0:01:27]} 43... Kc6 {[%clk 0:00:28.3]} 44.
Ra5 {[%clk 0:01:26.3]} 44... Kb6 {[%clk 0:00:28.2]} 45. Rd5 {[%clk 0:01:27.1]}
45... Kc6 {[%clk 0:00:29.1]} 46. Ra5 {[%clk 0:01:26.9]} 46... Kb6 {[%clk
0:00:23.7]} 1/2-1/2

[Event "*** Titled Tuesday 3|2 Blitz"]
[Site "Chess.com"]
[Date "2015.02.24"]
[Round "4"]
[White "kinetix"]
[Black "alturas_pacificas"]
[Result "0-1"]
[WhiteElo "1351"]
[BlackElo "2080"]
[TimeControl "180+2"]
[EndTime "11:46:52 PST"]
[Termination "alturas_pacificas won by resignation"]

1. e4 {[%clk 0:02:55.6]} 1... e5 {[%clk 0:02:58.4]} 2. f4 {[%clk 0:02:55.8]}
2... Bc5 {[%clk 0:02:58.4]} 3. Nf3 {[%clk 0:02:56.4]} 3... d6 {[%clk 0:02:57.8]}
4. Bc4 {[%clk 0:02:56.8]} 4... Nf6 {[%clk 0:02:53.7]} 5. d3 {[%clk 0:02:56.3]}
5... Nc6 {[%clk 0:02:50]} 6. Nc3 {[%clk 0:02:55.2]} 6... a6 {[%clk 0:02:51.1]}
7. Qe2 {[%clk 0:02:46.8]} 7... O-O {[%clk 0:02:46.1]} 8. f5 {[%clk 0:02:47.6]}
8... b5 {[%clk 0:02:41.2]} 9. Bb3 {[%clk 0:02:34.3]} 9... h6 {[%clk 0:02:25.2]}
10. Be3 {[%clk 0:02:26.7]} 10... Bxe3 {[%clk 0:02:08.8]} 11. Qxe3 {[%clk
0:02:27.9]} 11... Na5 {[%clk 0:02:09.3]} 12. O-O {[%clk 0:02:13.2]} 12... Bb7
{[%clk 0:02:06.2]} 13. Rae1 {[%clk 0:01:54.7]} 13... Nxb3 {[%clk 0:01:55]} 14.
axb3 {[%clk 0:01:54.9]} 14... Re8 {[%clk 0:01:56.4]} 15. Nd2 {[%clk 0:01:41.9]}
15... d5 {[%clk 0:01:52.9]} 16. exd5 {[%clk 0:01:40.8]} 16... Nxd5 {[%clk
0:01:52.7]} 17. Nxd5 {[%clk 0:01:41.6]} 17... Bxd5 {[%clk 0:01:44.3]} 18. f6
{[%clk 0:01:40.3]} 18... Re6 {[%clk 0:01:24.9]} 19. fxg7 {[%clk 0:01:28]} 19...
Rg6 {[%clk 0:01:20.3]} 20. Ne4 {[%clk 0:01:26.8]} 20... Kxg7 {[%clk 0:01:17.1]}
21. Rf5 {[%clk 0:01:23.1]} 21... Qe7 {[%clk 0:01:01.5]} 22. Ref1 {[%clk
0:01:15.8]} 22... Rg8 {[%clk 0:00:38.1]} 23. g3 {[%clk 0:01:04.9]} 23... Bxe4
{[%clk 0:00:32.2]} 24. Qxe4 {[%clk 0:00:56.7]} 24... f6 {[%clk 0:00:33.2]} 25.
b4 {[%clk 0:00:48]} 25... Rd8 {[%clk 0:00:33]} 26. c3 {[%clk 0:00:45.4]} 26...
Rd6 {[%clk 0:00:31.1]} 27. R1f3 {[%clk 0:00:40.7]} 27... Qd7 {[%clk 0:00:31.9]}
28. Kg2 {[%clk 0:00:39.5]} 28... Rg5 {[%clk 0:00:30.8]} 29. h4 {[%clk 0:00:40]}
29... Rxf5 {[%clk 0:00:30.7]} 30. Qxf5 {[%clk 0:00:40.7]} 30... Qxf5 {[%clk
0:00:31.8]} 31. Rxf5 {[%clk 0:00:41.8]} 31... Rxd3 {[%clk 0:00:33.3]} 32. Rf2
{[%clk 0:00:39]} 32... Kg6 {[%clk 0:00:34.7]} 33. Re2 {[%clk 0:00:33.7]} 33...
h5 {[%clk 0:00:35.4]} 34. Kh3 {[%clk 0:00:31.6]} 34... Kf7 {[%clk 0:00:35.7]}
35. Kg2 {[%clk 0:00:30.9]} 35... Ke6 {[%clk 0:00:36.8]} 36. Kf2 {[%clk
0:00:32.3]} 36... f5 {[%clk 0:00:37.9]} 37. Rc2 {[%clk 0:00:26.6]} 37... e4
{[%clk 0:00:38.8]} 38. b3 {[%clk 0:00:27]} 38... Kd6 {[%clk 0:00:33.9]} 39. c4
{[%clk 0:00:27]} 39... Rxb3 {[%clk 0:00:33.2]} 0-1

[Event "*** Titled Tuesday 3|2 Blitz"]
[Site "Chess.com"]
[Date "2015.02.24"]
[Round "4"]
[White "chito89"]
[Black "Nouki"]
[Result "1/2-1/2"]
[WhiteElo "2597"]
[BlackElo "2648"]
[TimeControl "180+2"]
[EndTime "11:47:11 PST"]
[Termination "Game drawn by agreement"]

1. d4 {[%clk 0:02:55.2]} 1... Nf6 {[%clk 0:02:54.9]} 2. c4 {[%clk 0:02:55.9]}
2... c6 {[%clk 0:02:55.9]} 3. Nf3 {[%clk 0:02:56.1]} 3... d5 {[%clk 0:02:57.4]}
4. e3 {[%clk 0:02:56.6]} 4... Bf5 {[%clk 0:02:53.6]} 5. Nc3 {[%clk 0:02:55.5]}
5... e6 {[%clk 0:02:54.7]} 6. Nh4 {[%clk 0:02:56.5]} 6... Be4 {[%clk 0:02:55.2]}
7. f3 {[%clk 0:02:56.2]} 7... Bg6 {[%clk 0:02:56.1]} 8. Bd2 {[%clk 0:02:56.4]}
8... Be7 {[%clk 0:02:54.9]} 9. Qb3 {[%clk 0:02:56.7]} 9... Qc7 {[%clk
0:02:54.7]} 10. Rc1 {[%clk 0:02:56.1]} 10... dxc4 {[%clk 0:02:54.2]} 11. Bxc4
{[%clk 0:02:55.9]} 11... Nbd7 {[%clk 0:02:50.9]} 12. Nxg6 {[%clk 0:02:42.5]}
12... hxg6 {[%clk 0:02:51.1]} 13. g3 {[%clk 0:02:41.9]} 13... a6 {[%clk
0:02:48.9]} 14. Be2 {[%clk 0:02:12.8]} 14... c5 {[%clk 0:02:29.5]} 15. Na4
{[%clk 0:02:03]} 15... Rc8 {[%clk 0:01:45.3]} 16. dxc5 {[%clk 0:02:02]} 16...
Nxc5 {[%clk 0:01:45.6]} 17. Nxc5 {[%clk 0:02:03.1]} 17... Bxc5 {[%clk
0:01:46.1]} 18. Qa4+ {[%clk 0:01:58.4]} 18... Qd7 {[%clk 0:01:37]} 19. Qxd7+
{[%clk 0:01:49.5]} 19... Kxd7 {[%clk 0:01:38.9]} 20. Kf2 {[%clk 0:01:48.5]}
20... Nd5 {[%clk 0:01:35.4]} 21. f4 {[%clk 0:01:36.4]} 21... f5 {[%clk 0:01:13]}
22. Bf3 {[%clk 0:01:36]} 22... Bb4 {[%clk 0:00:55.2]} 23. Bxd5 {[%clk
0:00:42.2]} 23... Bxd2 {[%clk 0:00:54.8]} 24. Rxc8 {[%clk 0:00:41.3]} 24... Rxc8
{[%clk 0:00:54.5]} 25. Bxb7 {[%clk 0:00:40]} 25... Rc2 {[%clk 0:00:50.1]} 26.
Rd1 {[%clk 0:00:38.2]} 26... Kc7 {[%clk 0:00:45]} 27. Bxa6 {[%clk 0:00:39]}
27... Rxb2 {[%clk 0:00:46.1]} 28. a4 {[%clk 0:00:35.8]} 28... e5 {[%clk
0:00:35.1]} 29. fxe5 {[%clk 0:00:29.7]} 29... Bc3+ {[%clk 0:00:35.3]} 30. Kf3
{[%clk 0:00:29.9]} 30... Bxe5 {[%clk 0:00:34.7]} 31. h4 {[%clk 0:00:30.5]} 31...
Bd6 {[%clk 0:00:29.1]} 32. Bb5 {[%clk 0:00:30.8]} 32... Ra2 {[%clk 0:00:26.8]}
33. Rd3 {[%clk 0:00:30.5]} 33... Ra1 {[%clk 0:00:21.3]} 34. Rc3+ {[%clk
0:00:31.6]} 34... Kd8 {[%clk 0:00:22.2]} 35. Kf2 {[%clk 0:00:31.7]} 35... Ra2+
{[%clk 0:00:22.1]} 36. Kf3 {[%clk 0:00:32.9]} 36... Ra1 {[%clk 0:00:23.6]} 37.
Kg2 {[%clk 0:00:21.9]} 37... Ra2+ {[%clk 0:00:23.1]} 38. Kh3 {[%clk 0:00:23.4]}
38... Ke7 {[%clk 0:00:24.7]} 39. Rd3 {[%clk 0:00:22.7]} 39... Ra3 {[%clk
0:00:23.4]} 40. Rxa3 {[%clk 0:00:20.8]} 40... Bxa3 {[%clk 0:00:25.3]} 41. g4
{[%clk 0:00:21.7]} 41... Bc5 {[%clk 0:00:24.9]} 1/2-1/2

[Event "*** Titled Tuesday 3|2 Blitz"]
[Site "Chess.com"]
[Date "2015.02.24"]
[Round "4"]
[White "Danirod"]
[Black "190l"]
[Result "1/2-1/2"]
[WhiteElo "2357"]
[BlackElo "1980"]
[TimeControl "180+2"]
[EndTime "11:47:23 PST"]
[Termination "Game drawn by repetition"]

1. e4 {[%clk 0:03:00]} 1... c5 {[%clk 0:02:59]} 2. Nf3 {[%clk 0:03:00.8]} 2...
Nc6 {[%clk 0:03:00.3]} 3. c3 {[%clk 0:03:01.8]} 3... Nf6 {[%clk 0:03:00.5]} 4.
e5 {[%clk 0:03:03.1]} 4... Nd5 {[%clk 0:02:59.9]} 5. d4 {[%clk 0:03:04]} 5...
cxd4 {[%clk 0:03:01.8]} 6. Bc4 {[%clk 0:03:04.6]} 6... Nb6 {[%clk 0:03:02.1]} 7.
Bb3 {[%clk 0:03:05.8]} 7... d5 {[%clk 0:02:56.5]} 8. exd6 {[%clk 0:03:07]} 8...
Qxd6 {[%clk 0:02:55.3]} 9. O-O {[%clk 0:03:07.9]} 9... Be6 {[%clk 0:02:55]} 10.
Nxd4 {[%clk 0:03:09]} 10... Nxd4 {[%clk 0:02:52.1]} 11. cxd4 {[%clk 0:03:10]}
11... Bxb3 {[%clk 0:02:47.5]} 12. Qxb3 {[%clk 0:03:10.9]} 12... e6 {[%clk
0:02:45.7]} 13. Nc3 {[%clk 0:03:09.2]} 13... Be7 {[%clk 0:02:46.2]} 14. Nb5
{[%clk 0:03:08.5]} 14... Qd8 {[%clk 0:02:35.4]} 15. Bf4 {[%clk 0:03:09.3]} 15...
Nd5 {[%clk 0:02:25.8]} 16. Be5 {[%clk 0:03:07.6]} 16... O-O {[%clk 0:02:25.6]}
17. Rac1 {[%clk 0:03:07]} 17... a6 {[%clk 0:02:24.8]} 18. Nc7 {[%clk 0:03:01]}
18... Nxc7 {[%clk 0:02:15.3]} 19. Rxc7 {[%clk 0:03:01]} 19... b5 {[%clk
0:02:16.5]} 20. Rfc1 {[%clk 0:02:49.6]} 20... Bd6 {[%clk 0:02:02.8]} 21. R7c6
{[%clk 0:02:49.7]} 21... Bxe5 {[%clk 0:01:56.3]} 22. dxe5 {[%clk 0:02:51]} 22...
Qd4 {[%clk 0:01:55.4]} 23. Qc3 {[%clk 0:02:40.8]} 23... Qa4 {[%clk 0:01:49.7]}
24. a3 {[%clk 0:02:36.6]} 24... g6 {[%clk 0:01:44.9]} 25. g3 {[%clk 0:02:31.2]}
25... a5 {[%clk 0:01:36.7]} 26. Qf3 {[%clk 0:02:18.6]} 26... b4 {[%clk
0:01:29.3]} 27. R1c4 {[%clk 0:02:15.1]} 27... Qb5 {[%clk 0:01:21.4]} 28. R6c5
{[%clk 0:02:07.8]} 28... Qb8 {[%clk 0:01:17.3]} 29. a4 {[%clk 0:02:08.3]} 29...
Ra7 {[%clk 0:01:13.5]} 30. h4 {[%clk 0:02:08]} 30... h5 {[%clk 0:01:13.6]} 31.
g4 {[%clk 0:01:54.1]} 31... hxg4 {[%clk 0:01:12]} 32. Rxg4 {[%clk 0:01:55.8]}
32... Rc8 {[%clk 0:01:06.4]} 33. Rxc8+ {[%clk 0:01:48.9]} 33... Qxc8 {[%clk
0:01:08.3]} 34. h5 {[%clk 0:01:49.1]} 34... Qc1+ {[%clk 0:00:56.8]} 35. Kg2
{[%clk 0:01:50.2]} 35... Qxb2 {[%clk 0:00:54.7]} 36. hxg6 {[%clk 0:01:46.4]}
36... fxg6 {[%clk 0:00:56.2]} 37. Rxg6+ {[%clk 0:01:44.9]} 37... Rg7 {[%clk
0:00:57.8]} 38. Rxg7+ {[%clk 0:01:42.3]} 38... Kxg7 {[%clk 0:00:59.7]} 39. Qf6+
{[%clk 0:01:43.6]} 39... Kh7 {[%clk 0:01:00.8]} 40. Qxe6 {[%clk 0:01:38.8]}
40... b3 {[%clk 0:01:02.2]} 41. Qf7+ {[%clk 0:01:37]} 41... Kh6 {[%clk
0:01:01.3]} 42. e6 {[%clk 0:01:36.6]} 42... Qc2 {[%clk 0:00:56.8]} 43. e7 {[%clk
0:01:25.8]} 43... Qe4+ {[%clk 0:00:57.6]} 44. f3 {[%clk 0:00:56.9]} 44... Qe2+
{[%clk 0:00:50.7]} 45. Kg3 {[%clk 0:00:58.4]} 45... Qe1+ {[%clk 0:00:51.2]} 46.
Kg4 {[%clk 0:00:50.9]} 46... Qg1+ {[%clk 0:00:44.3]} 47. Kf5 {[%clk 0:00:51.5]}
47... Qc5+ {[%clk 0:00:38.8]} 48. Kf6 {[%clk 0:00:50.9]} 48... Qc3+ {[%clk
0:00:20.4]} 49. Ke6 {[%clk 0:00:51.2]} 49... Qc4+ {[%clk 0:00:20.5]} 50. Kf6
{[%clk 0:00:52.7]} 50... Qc3+ {[%clk 0:00:21.3]} 51. Ke6 {[%clk 0:00:52.2]}
51... Qc4+ {[%clk 0:00:21.4]} 52. Kf6 {[%clk 0:00:53.6]} 52... Qc3+ {[%clk
0:00:21.6]} 53. Ke6 {[%clk 0:00:54.9]} 1/2-1/2